Workbook

Sheet PLACARD
E2: =AT7 -> PLACARD DURVJU KALKULATORS | S2: =AT8 -> Pēdējais atjauninājums: | Y2: LISTAS DE VALIDACIÓN | AF2: CÁLCULOS | AS2: TRADUCCIONES
S3: =AT9 -> Marts 2018 | AG3: ANCHO TABLERO (T) | AI3: ANCHO CRISTAL (C) | AK3: ANCHO TRAV. (TR) | AM3: ANCHO PER. SUP/INF (PS/PI) | AO3: ANCHO PUERTA | AP3: A min | AX3: MES | AY3: AÑO
Y4: Sistema corredero | AB4: Perfiles | AC4: AGL | AG4: 2P | AH4: 3P | AI4: 2P | AJ4: 3P | AK4: ANCHO PERF. | AL4: MEDIDA | AM4: 2P | AN4: 3P | AO4: =T+ valor | AP4: c/slow | AT4: texto a mostrar | AU4: LV | AW4: Fecha de actualización: | AX4: Marzo | AY4: 2018
B5: =AT10 -> IEVADIET AILES IZMĒRUS | H5: =AT32 -> VĒRTNES IZMĒRS | L5: =IF(ISERROR(VLOOKUP($O$8,$AB$48:$AB$50,1,0)),0,1) -> 0 | Y5: =+AT14 -> Plackard | Z5: 42 | AB5: Sharp 16 | AC5: 16 | AF5: Sharp 16 | AG5: =($D$9-45)/2 -> 927.5 | AH5: =($D$9-60)/3 -> 613.3333333 | AI5: =AG5-2 -> 925.5 | AJ5: 611.3333333 | AK5: 25 | AL5: =$I$7-(2*AK5) -> 596.6666667 | AM5: =AG5 -> 927.5 | AN5: 613.3333333 | AO5: 30 | AP5: 640 | BG5: MESES DEL AÑO
Y6: =+AT15 -> Plackard ar bremzi | Z6: 42 | AB6: Sharp 18 | AC6: 18 | AF6: Sharp 18E | AG6: =($D$9-45)/2 -> 927.5 | AH6: =($D$9-60)/3 -> 613.3333333 | AI6: 925.5 | AJ6: 611.3333333 | AK6: 25 | AL6: =$I$7-(2*AK6) -> 596.6666667 | AM6: 927.5 | AN6: 613.3333333 | AO6: 30 | AP6: 640 | AS6: 1 | AU6: ES | AV6: IT | AW6: FR | AX6: EN | AY6: PT | AZ6: LV | BA6: DE | BB6: SERBIO | BG6: ES | BH6: IT | BI6: FR | BJ6: IN | BK6: PT | BL6: LV | BM6: DE | BN6: SERBIO
B7: =AT11 -> Bīdāmo durvju sistēma | C7: Plackard | H7: =+AT50 -> Vērtnes kopējais platums | I7: =K13+VLOOKUP($C$13,$AF$5:$AO$20,10,0) -> 646.6666667 | J7: mm | O7: =IF(O8="","",AT41) -> Komentāri: | AB7: Wave 16 | AC7: 16 | AF7: Wave 16 | AG7: =($D$9-64)/2 -> 918 | AH7: =($D$9-86)/3 -> 604.6666667 | AI7: 916 | AJ7: 602.6666667 | AK7: 33 | AL7: =$I$7-(2*AK7) -> 580.6666667 | AM7: 918 | AN7: 604.6666667 | AO7: 42 | AP7: 656 | AS7: 2 | AT7: =HLOOKUP($AU$4,$AU$6:$BB$85,AS7,0) -> PLACARD DURVJU KALKULATORS | AU7: CÁLCULO DE PUERTAS PLACARD | AV7: CALCOLI PER PORTE PLACARD | AW7: CALCUL PORTES PLACARD | AX7: PLACARD DOORS CALCULATION | AY7: CÁLCULO PORTAS PLACARD | AZ7: PLACARD DURVJU KALKULATORS | BB7: PLACARD KALKULACIJA VRATA | BG7: Enero | BH7: Gennaio | BI7: Janvier | BJ7: January | BK7: Janeiro | BL7: Janvāris | BN7: Januar
B8: =AT16 -> Vērtņu skaits | C8: 3 | H8: =AT33 -> Roktura profils (H) = | I8: =$D$10-VLOOKUP($C$7,$Y$5:$Z$8,2,0) -> 1158 | J8: mm | O8: =IFERROR(VLOOKUP("S1",$Z$48:$AB$61,3,0),"") -> - Augšējais/apakšējais profils ir nepieciešams ja augšējais/apakšējais panelis ir no stikla | AB8: Wave 18 | AC8: 18 | AF8: Wave 18 | AG8: =($D$9-64)/2 -> 918 | AH8: =($D$9-86)/3 -> 604.6666667 | AI8: 916 | AJ8: 602.6666667 | AK8: 33 | AL8: =$I$7-(2*AK8) -> 580.6666667 | AM8: 918 | AN8: 604.6666667 | AO8: 42 | AP8: 656 | AS8: 3 | AT8: Pēdējais atjauninājums: | AU8: Última actualización: | AV8: Aggiornato: | AW8: Actualisation: | AX8: Last update: | AY8: Última actualizaçao: | AZ8: Pēdējais atjauninājums: | BB8: Last update: | BG8: Febrero | BH8: Febbraio | BI8: Février | BJ8: February | BK8: Fevereiro | BL8: Februāris | BN8: Februar
B9: =AT17 -> Ailes platums | C9: A= | D9: 1900 | E9: mm | H9: =AT34 -> U / H profils (TR) = | I9: =VLOOKUP($C$13,$AF$5:$AO$20,7,0) -> 580.6666667 | J9: mm | O9: =IFERROR(VLOOKUP("S2",$Z$48:$AB$61,3,0),"") -> - Neaizmirstat blīvējumu stiklam 16-E7917121. | AS9: 4 | AT9: =HLOOKUP($AU$4,$AU$6:$BB$85,AS9,0) -> Marts 2018 | AU9: =VLOOKUP($AX$4,$BG$7:$BN$18,1,0)&" "&$AY$4 -> Marzo 2018 | AV9: =VLOOKUP($AX$4,$BG$7:$BN$18,2,0)&" "&$AY$4 -> Marzo 2018 | AW9: =VLOOKUP($AX$4,$BG$7:$BN$18,3,0)&" "&$AY$4 -> Mars 2018 | AX9: =VLOOKUP($AX$4,$BG$7:$BN$18,4,0)&" "&$AY$4 -> March 2018 | AY9: =VLOOKUP($AX$4,$BG$7:$BN$18,5,0)&" "&$AY$4 -> Março 2018 | AZ9: =VLOOKUP($AX$4,$BG$7:$BN$18,6,0)&" "&$AY$4 -> Marts 2018 | BB9: =VLOOKUP($AX$4,$BG$7:$BN$18,5,0)&" "&$AY$4 -> Março 2018 | BG9: Marzo | BH9: Marzo | BI9: Mars | BJ9: March | BK9: Março | BL9: Marts | BN9: Mart
B10: =AT18 -> Ailes augstums | C10: HI= | D10: 1200 | E10: mm | H10: =AT35 -> Augš. / apakš. profils = | I10: =VLOOKUP($C$13,$AF$5:$AO$20,IF($C$8=2,8,9),0) -> 604.6666667 | J10: mm | O10: =IFERROR(VLOOKUP("S3",$Z$48:$AB$61,3,0),"") ->  | AS10: 5 | AT10: IEVADIET AILES IZMĒRUS | AU10: INTRODUCIR DATOS DEL ARMARIO | AV10: INSERIRE I DATI DELL'ARMADIO | AW10: INTRODUIRE LES CARACTÉRISTIQUES DE L'ARMOIRE | AX10: INSERT WARDROBE DATA | AY10: INTRODUZIR DADOS DO ROUPEIRO | AZ10: IEVADIET AILES IZMĒRUS | BB10: UNESITE PODATKE GARDEROBERA | BG10: Abril | BH10: Aprile | BI10: Avril | BJ10: April | BK10: Abril | BL10: Aprīlis | BN10: April
O11: =IFERROR(VLOOKUP("S4",$Z$48:$AB$61,3,0),"") ->  | Y11: Tipo de puerta | AS11: 6 | AT11: Bīdāmo durvju sistēma | AU11: Sistema corredero | AV11: Sistema scorrevole | AW11: Système coulissant | AX11: Sliding system | AY11: Sistema de correr | AZ11: Bīdāmo durvju sistēma | BB11: Klizni sistem | BG11: Mayo | BH11: Maggio | BI11: Mai | BJ11: May | BK11: Maio | BL11: Maijs | BN11: Maj
B12: =AT19 -> Materiāls | C12: Koks + 4mm stikls | I12: =AT36 -> Augstums (Hc) | K12: =AT37 -> Platums (C) | O12: =IFERROR(VLOOKUP("S5",$Z$48:$AB$61,3,0),"") ->  | Y12: =+AT20 -> 4mm stikls | AS12: 7 | AT12: Palacard Clasic | AU12: Placard Clásico | AV12: Placard Classico | AW12: Placard Classique | AX12: Classic Placard | AY12: Placard Clasico | AZ12: Palacard Clasic | BB12: Classic Placard | BG12: Junio | BH12: Giugno | BI12: Juin | BJ12: Juny | BK12: Junho | BL12: Jūnijs | BN12: Jun
B13: =AT23 -> Roktura profils | C13: Wave 18 | H13: =AT38 -> Panelis *: | I13: =($I$8-(1.5*$C$14)-(2*IF($C$15=$AA$31,2,IF(OR($C$15=$AA$29,$C$15=$AA$30),1,0))))/($C$14+1) -> 578.25 | J13: mm | K13: =VLOOKUP($C$13,$AF$5:$AO$20,IF($C$8=2,2,3),0) -> 604.6666667 | L13: mm | Y13: =+AT21 -> Koks | AS13: 8 | AT13: Placard Clasic + bremze | AU13: Placard Clásico + Slowmove | AV13: Placard Classico + Slowmove | AW13: Placard Classique + Slowmove | AX13: Classic Placard + Slowmove | AY13: Placard Clasico + Slowmove | AZ13: Placard Clasic + bremze | BB13: Classic Placard + Slowmove mehanizam | BG13: Julio | BH13: Luglio | BI13: Juillet | BJ13: July | BK13: Julho | BL13: Jūlijs | BN13: Jul
B14: =AT24 -> Dalījuma profilu skaits | C14: 1 | H14: =AT39 -> Stikls *: | I14: =I13-2 -> 576.25 | J14: mm | K14: =K13-2 -> 602.6666667 | L14: mm | Y14: =+AT22 -> Koks + 4mm stikls | AS14: 9 | AT14: Plackard | AU14: Placard Canal | AV14: Placard Canale | AW14: Placard Canale | AX14: Groove Placard | AY14: Placard Canal | AZ14: Plackard | BB14: Groove Placard | BG14: Agosto | BH14: Agosto | BI14: Août | BJ14: August | BK14: Agosto | BL14: Augusts | BN14: Avgust
B15: =IF($C$12=$Y$12,AT25,AT26) -> U profils | C15: Bez U profila | H15: =AT40 -> *Ar vienādiem dalījumiem | AS15: 10 | AT15: Plackard ar bremzi | AU15: Placard Canal + Slowmove | AV15: Placard Canale + Slowmove | AW15: Placard Canale + Slowmove | AX15: Groove Placard + Slowmove | AY15: Placard Canal + Slowmove | AZ15: Plackard ar bremzi | BB15: Groove Placard + Slowmove mehanizam | BG15: Septiembre | BH15: Settembre | BI15: Septembre | BJ15: September | BK15: Setembro | BL15: Septembris | BN15: Septembar
Y16: Nº travesaños | AS16: 11 | AT16: Vērtņu skaits | AU16: Nº de puertas | AV16: Nº di porte | AW16: Nº de portes | AX16: Nº of doors | AY16: Nº de portas | AZ16: Vērtņu skaits | BB16: Broj vrata | BG16: Octubre | BH16: Ottobre | BI16: Octobre | BJ16: October | BK16: Outubro | BL16: Oktobris | BN16: Oktobar
Y17: 0 | AS17: 12 | AT17: Ailes platums | AU17: Ancho interior | AV17: Larguezza interiore | AW17: Largeur intérieure | AX17: Interior width | AY17: Largura interior | AZ17: Ailes platums | BB17: Unutrašnja širina | BG17: Noviembre | BH17: Novembre | BI17: Novembre | BJ17: November | BK17: Novembro | BL17: Novembris | BN17: Novembar
Y18: 1 | AS18: 13 | AT18: Ailes augstums | AU18: Altura interior | AV18: Altezza interiore | AW18: Alteur intérieure | AX18: Interior height | AY18: Altura interior | AZ18: Ailes augstums | BB18: Unutrašnja visina | BG18: Diciembre | BH18: Dicembre | BI18: Décembre | BJ18: December | BK18: Dezembro | BL18: Decembris | BN18: Decembar
Y19: 2 | AS19: 14 | AT19: Materiāls | AU19: Tipo de puerta | AV19: Tipo di porta | AW19: Type de porte | AX19: Door type | AY19: Tipo de porta | AZ19: Materiāls | BB19: Tip vrata
Y20: 3 | AS20: 15 | AT20: 4mm stikls | AU20: Cristal 4mm | AV20: Vetro 4mm | AW20: Verre 4mm | AX20: 4mm glass | AY20: Vidro 4mm | AZ20: 4mm stikls | BB20: 4mm stklo
Y21: 4 | AS21: 16 | AT21: Koks | AU21: Madera | AV21: Legno | AW21: Bois | AX21: Wood | AY21: Madeira | AZ21: Koks | BB21: Drvo
Y22: 5 | AS22: 17 | AT22: Koks + 4mm stikls | AU22: Madera + Cristal 4mm | AV22: Legno + Vetro 4mm | AW22: Bois + Verre 4mm | AX22: Wood + 4mm glass | AY22: Madeira + Vidro 4mm | AZ22: Koks + 4mm stikls | BB22: Drvo + 4mm staklo
AS23: 18 | AT23: Roktura profils | AU23: Modelo de tirador | AV23: Modello di maniglia | AW23: Modèle de poignée | AX23: Handle model | AY23: Modelo de puxador | AZ23: Roktura profils | BB23: Model ručke
AS24: 19 | AT24: Dalījuma profilu skaits | AU24: Nº de travesaños | AV24: Nº di traversi | AW24: Nº de traverses | AX24: Nº of crosspieces | AY24: Nº de perfis japonesa | AZ24: Dalījuma profilu skaits | BB24: Broj poprečnih delova
AS25: 20 | AT25: U profils | AU25: Perfil L | AV25: Profilo L | AW25: Profil L | AX25: L profile | AY25: Calha L | AZ25: U profils | BB25: L profil
AS26: 21 | AT26: U profils | AU26: Perfil U | AV26: Profilo U | AW26: Profil U | AX26: U profile | AY26: Calha U | AZ26: U profils | BB26: U profil
Y27: Perfil U/L | Z27: Resto | AA27: =Y12 -> 4mm stikls | AS27: 22 | AT27: Bez U profila | AU27: Sin perfil L | AV27: Senza profilo L | AW27: Sans profil L | AX27: w/o L profile | AY27: Sem calha L | AZ27: Bez U profila | BB27: bez L profila
Y28: =IF($C$12=$Y$12,AA28,Z28) -> Bez U profila | Z28: =AT28 -> Bez U profila | AA28: =+AT27 -> Bez U profila | AS28: 23 | AT28: Bez U profila | AU28: Sin perfil U | AV28: Senza profilo U | AW28: Sans profil U | AX28: w/o U profile | AY28: Sem calha U | AZ28: Bez U profila | BB28: bez U profila
Y29: =IF($C$12=$Y$12,AA29,Z29) -> Apakšā | Z29: =+AT29 -> Apakšā | AS29: 24 | AT29: Apakšā | AU29: Abajo | AV29: Inferiore | AW29: Inférieur | AX29: Down | AY29: Abaixo | AZ29: Apakšā | BB29: Dole
AS30: 25 | AT30: Augšā | AU30: Arriba | AV30: Superiore | AW30: Supérieur | AX30: Up | AY30: Arriba | AZ30: Augšā | BB30: Gore
AS31: 26 | AT31: Augšā un apakšā | AU31: Arriba y abajo | AV31: Superiore ed inferiore | AW31: Supérieur et inférieur | AX31: Up & Down | AY31: Arriba e abaixo | AZ31: Augšā un apakšā | BB31: Gore i dole
AS32: 27 | AT32: VĒRTNES IZMĒRS | AU32: MEDIDAS DE LA PUERTA | AV32: DIMENSIONI DELLA PORTA | AW32: DIMENSIONS DE LA PORTE | AX32: DOOR SIZES | AY32: MEDIDAS DA PORTA | AZ32: VĒRTNES IZMĒRS | BB32: Dimenzije vrata
AS33: 28 | AT33: Roktura profils (H) = | AU33: Perfil tirador (H) = | AV33: Profilo maniglia (H) = | AW33: Profil poignée (H) = | AX33: Handle profile (H) = | AY33: Puxador (H) = | AZ33: Roktura profils (H) = | BB33: Ručka profil (H) =
AS34: 29 | AT34: U / H profils (TR) = | AU34: Perfil U / H / L (TR) = | AV34: Profilo U / H / L (TR) = | AW34: Profil U / H / L (TR) = | AX34: U / H / L profile (TR) = | AY34: Calha U/japonesa/L (TR) = | AZ34: U / H profils (TR) = | BB34: U / H / L profil (TR) =
AS35: 30 | AT35: Augš. / apakš. profils = | AU35: Perfil sup. / inf. = | AV35: Profilo sup. / inf. = | AW35: Profil sup. / inf. = | AX35: Sup. / Inf. profile = | AY35: Calha Sup. / Inf. = | AZ35: Augš. / apakš. profils = | BB35: Gornji / Donji profil =
AS36: 31 | AT36: Augstums (Hc) | AU36: Alto (Hc) | AV36: Altezza (Hc) | AW36: Alteur (Hc) | AX36: Height (Hc) | AY36: Altura (Hc) | AZ36: Augstums (Hc) | BB36: Visina (Hc)
AS37: 32 | AT37: Platums (C) | AU37: Ancho (C) | AV37: Lunguezza (C) | AW37: Largeur (C) | AX37: Width (C) | AY37: Largura (C) | AZ37: Platums (C) | BB37: Širina (C)
AS38: 33 | AT38: Panelis *: | AU38: Tablero *: | AV38: Panello *: | AW38: Panneau *: | AX38: Panel *: | AY38: Painel *: | AZ38: Panelis *: | BB38: Ploča *:
AS39: 34 | AT39: Stikls *: | AU39: Cristal *: | AV39: Vetro *: | AW39: Verre *: | AX39: Glass *: | AY39: Vidro *: | AZ39: Stikls *: | BB39: Staklo *:
AS40: 35 | AT40: *Ar vienādiem dalījumiem | AU40: * Travesaños equidistantes. | AV40: * Traversi equidistanti. | AW40: * Traverses équidistants. | AX40: *Equidistant crosspieces. | AY40: * Perfis japonesa equidistantes. | AZ40: *Ar vienādiem dalījumiem | BB40: * Jednaki poprečni delovi
AS41: 36 | AT41: Komentāri: | AU41: Observaciones: | AV41: Commenti: | AW41: Remarques: | AX41: Comments: | AY41: Observaçoes: | AZ41: Komentāri: | BB41: Komentari:
AS42: 37 | AT42: - UZMANĪBU | AU42: - ¡OJO! La versión | AV42: - ATTENZIONE! La versione | AW42: - ATTENTION! La version | AX42: - WATCH OUT! | AY42: - ¡ATENÇAO! A versão | AZ42: - UZMANĪBU | BB42: - PAŽNJA !
AS43: 38 | AT43: versija nav*** | AU43: no es compatible con los tiradores de 19mm. | AV43: non è compatibile con le maniglie per 19mm. | AW43: n'est pas compatible avec des poignées pour 19mm. | AX43: version is not compatible with 19mm handles. | AY43: não é compativel com os puxadores de 19mm. | AZ43: versija nav*** | BB43: verzija nije kompatibilna sa ručkama 19mm.
Y44: MENSAJES DE ERROR / RECORDATORIOS | AS44: 39 | AT44: - UZMANĪBU! Nav iespējams likt U profilu vērtnes augšā. | AU44: - ¡OJO! No es posible montar perfil U en la parte de arriba de la puerta. | AV44: - ATTENZIONE! Non si puó assemblare profilo U nella parte superiore della porta. | AW44: - ATTENTION! Profil U ne peu pas être assemblé à la parte supérieur de la porte. | AX44: - WATCH OUT! It is not possible to assembly U profile on the upper part of the door. | AY44: =" - ATENÇÃO! Não é possível montar perfil U na parte de para cima da porta." -> - ATENÇÃO! Não é possível montar perfil U na parte de para cima da porta. | AZ44: - UZMANĪBU! Nav iespējams likt U profilu vērtnes augšā. | BB44: - PAŽNJA ! Nije moguće montirati U profil na gornji deo vrata.
AS45: 40 | AT45: - UZMANĪBU! 19mm*** | AU45: =" - ¡OJO! Los perfiles de 19mm no son compatibles con la puerta "&$C$12&"." -> - ¡OJO! Los perfiles de 19mm no son compatibles con la puerta Koks + 4mm stikls. | AV45: =" - ATTENZIONE! I profili di 19mm non sono compatibili con la porta "&$C$12&"." -> - ATTENZIONE! I profili di 19mm non sono compatibili con la porta Koks + 4mm stikls. | AW45: =" - ATTENTION! Les profils pour 19mm ne sont pas compatibles avec la porte "&$C$12&"." -> - ATTENTION! Les profils pour 19mm ne sont pas compatibles avec la porte Koks + 4mm stikls. | AX45: =" - WATCH OUT! 19mm profiles are not compatible with "&$C$12& "door." -> - WATCH OUT! 19mm profiles are not compatible with Koks + 4mm stiklsdoor. | AY45: =" - ¡ATENÇAO! Os puxadores de 19mm não são compatíveis com a porta "&$C$12&"." -> - ¡ATENÇAO! Os puxadores de 19mm não são compatíveis com a porta Koks + 4mm stikls. | AZ45: - UZMANĪBU! 19mm*** | BB45: =" - PAŽNJA ! Profili 19mm nisu kompatibilni sa "&$C$12&" vratima." -> - PAŽNJA ! Profili 19mm nisu kompatibilni sa Koks + 4mm stikls vratima.
AS46: 41 | AT46: =HLOOKUP($AU$4,$AU$6:$BB$85,AS46,0)&" 16-E4001621." -> - Neaizmirstat blīvējumu stiklam 16-E4001621. | AU46: - No olvidar pedir la guarnición para cristal cód. | AV46: - Non dimenticare la guarnizione per vetro cod. | AW46: - N'oubliez pas le profil pour verre code | AX46: - Do not forget glass gasket code | AY46: - Não se esqueça pedir o vedante para o vidro cod. | AZ46: - Neaizmirstat blīvējumu stiklam | BB46: - Ne zaboravite šifru za gumu za staklo
Z47: orden | AA47: ¿activar? | AB47: error | AS47: 42 | AT47: =HLOOKUP($AU$4,$AU$6:$BB$85,AS47,0) -> - Neaizmirstat *** | AU47: - No olvidar pedir el paragolpes cód. 8920221 para el perfil tirador Vall19. | AV47: - Non dimenticare di ordinare la gomma paracolpi cod. 8920221 per il profilo maniglia Vall19. | AW47: - N'oubliez pas d'acheter le profil pare-chocs code 8920221 pour le profil poignée Vall19. | AX47: - Do not forget to order bumper profile code 8920221 for Vall19 handle. | AY47: - Não se esqueça pedir o perfil batente cod. 8920221 para o perfil puxador Vall19. | AZ47: - Neaizmirstat *** | BB47: - Ne zaboravite da naručite bumper za profil šifra 8920221 za Vall 19 ručku.
Y48: PLACARD CLÁSICO + 19mm | Z48: =AA48&COUNTIF($AA$48:$AA$61,AA48)-COUNTIF(AA48:$AA61,AA48)+1 -> N1 | AA48: =IF(ISERROR(VLOOKUP($C$13,$AF$18:$AF$20,1,0)),"N",IF(OR($C$7=$Y$5,$C$7=$Y$6),"S","N")) -> N | AB48: =$AT$42&$C$7&$AT$43 -> - UZMANĪBUPlackardversija nav*** | AS48: 43 | AT48: =HLOOKUP($AU$4,$AU$6:$BB$85,AS48,0) -> - Neaizmirstat *** | AU48: - No olvidar pedir el accesorio cód. 6006920 para fijar los cristales. | AV48: - Non dimenticare di ordinare gli accessori cod. 6006920 per il fissagio dei vetri. | AW48: - N'oubliez pas d'acheter les accessoires code 6006920 pour la fixation des verres. | AX48: - Do not forget to order accessories code 6006920 for fixing the glasses. | AY48: - Não se esqueça pedir o accessório cod. 6006920 para a montagem dos vidros. | AZ48: - Neaizmirstat *** | BB48: - Ne zaboravite da naručite aksesoar šifra 6006920 za fiksiranje stakla.
Y49: PERFIL U SUP EN PTA MADERA | Z49: =AA49&COUNTIF($AA$48:$AA$61,AA49)-COUNTIF(AA49:$AA62,AA49)+1 -> N2 | AA49: =IF($B$15=$AT$26,IF(ISERROR(VLOOKUP($C$15,$Z$28:$Z$31,1,0)),"S","N"),"N") -> N | AB49: =$AT$44 -> - UZMANĪBU! Nav iespējams likt U profilu vērtnes augšā. | AS49: 44 | AT49: =HLOOKUP($AU$4,$AU$6:$BB$85,AS49,0)&" 16-E7917121." -> - Neaizmirstat blīvējumu stiklam 16-E7917121. | AU49: - No olvidar pedir la guarnición para cristal cód. | AV49: - Non dimenticare la guarnizione per vetro cod. | AW49: - N'oubliez pas le profil pour verre code | AX49: - Do not forget glass gasket code | AY49: - Não se esqueça pedir o vedante para o vidro cod. | AZ49: - Neaizmirstat blīvējumu stiklam | BB49: - Ne zaboravite šifru za gumu za staklo.
Y50: PUERTA CRISTAL + 19mm | Z50: =AA50&COUNTIF($AA$48:$AA$61,AA50)-COUNTIF(AA50:$AA63,AA50)+1 -> N3 | AA50: =IF(AND(OR($C$12=$Y$12,$C$12=$Y$14),ISERROR(VLOOKUP($C$13,$AF$5:$AF$15,1,0))),"S","N") -> N | AB50: =AT45 -> - UZMANĪBU! 19mm*** | AS50: 45 | AT50: =HLOOKUP($AU$4,$AU$6:$BB$85,AS50,0) -> Vērtnes kopējais platums | AU50: Ancho total puerta | AV50: Larguezza totale porta | AW50: Largeur totale porte | AX50: Door total width | AY50: Largura total porta | AZ50: Vērtnes kopējais platums | BB50: Ukupna širina vrata
Y51: MIN PUERTA C/SLOW | Z51: =AA51&COUNTIF($AA$48:$AA$61,AA51)-COUNTIF(AA51:$AA64,AA51)+1 -> N4 | AA51: =IF(AND(OR($C$7=$Y$6,$C$7=$Y$8),VLOOKUP($C$13,$AF$5:$AP$20,11,0)>$I$7),"S","N") -> N | AB51: =AT51 -> - UZMANĪBU! Minimālais durvju platums priekš aizvēršanas un atvēršanas bremzes ir 656mm. | AS51: 46 | AT51: =HLOOKUP($AU$4,$AU$6:$BB$85,AS51,0) -> - UZMANĪBU! Minimālais durvju platums priekš aizvēršanas un atvēršanas bremzes ir 656mm. | AU51: =" - ¡OJO! El ancho mínimo de puerta para Slowmove en apertura y cierre es de "&VLOOKUP($C$13,$AF$5:$AP$20,11,0)&"mm." -> - ¡OJO! El ancho mínimo de puerta para Slowmove en apertura y cierre es de 656mm. | AV51: =" - ATTENZIONE! La larguezza minima della porta per Slowmove in apertura e chiusura è "&VLOOKUP($C$13,$AF$5:$AP$20,11,0)&"mm." -> - ATTENZIONE! La larguezza minima della porta per Slowmove in apertura e chiusura è 656mm. | AW51: =" - ATTENTION! La largeur minimal de la porte pour Slowmove à l'ouverture et à la fermeture est "&VLOOKUP($C$13,$AF$5:$AP$20,11,0)&"mm." -> - ATTENTION! La largeur minimal de la porte pour Slowmove à l'ouverture et à la fermeture est 656mm. | AX51: =" - WATCH OUT! The minimun door width for open and close softclosing is "&VLOOKUP($C$13,$AF$5:$AP$20,11,0)&"mm." -> - WATCH OUT! The minimun door width for open and close softclosing is 656mm. | AY51: =" - ¡ATENÇAO! A largura mínima da porta para abrir e fechar o Slowmove é "&VLOOKUP($C$13,$AF$5:$AP$20,11,0)&"mm." -> - ¡ATENÇAO! A largura mínima da porta para abrir e fechar o Slowmove é 656mm. | AZ51: =" - UZMANĪBU! Minimālais durvju platums priekš aizvēršanas un atvēršanas bremzes ir "&VLOOKUP($C$13,$AF$5:$AP$20,11,0)&"mm." -> - UZMANĪBU! Minimālais durvju platums priekš aizvēršanas un atvēršanas bremzes ir 656mm. | BB51: =" - PAŽNJA ! Minimalna širina vrata za otvaranje i zatvaranje meko zatvaranje je "&VLOOKUP($C$13,$AF$5:$AP$20,11,0)&"mm." -> - PAŽNJA ! Minimalna širina vrata za otvaranje i zatvaranje meko zatvaranje je 656mm.
AB52: recordatorio | AS52: 47 | AT52: =HLOOKUP($AU$4,$AU$6:$BB$85,AS52,0) -> - Augšējais/apakšējais profils ir nepieciešams ja augšējais/apakšējais panelis ir no stikla | AU52: - Se requiere perfil superior/inferior si el panel superior/inferior es de cristal. | AV52: - Il profilo superiore/inferiore è richiesto se il panello superiore/inferiore è in vetro. | AW52: - Le profil supérieur/inférieur est réquiert si le panneau supérieur/inférieur est en verre. | AX52: - The upper/lower profile is required if the upper/lower pannel is of glass. | AY52: - Calha superior / inferior necessária se o painel superior / inferior for de vidro. | AZ52: - Augšējais/apakšējais profils ir nepieciešams ja augšējais/apakšējais panelis ir no stikla | BB52: (pending translation)
Y53: PARAGOLPES VALL19 | AB53: =$AT$47 -> - Neaizmirstat *** | AS53: 48 | AT53: =HLOOKUP($AU$4,$AU$6:$BB$85,AS53,0) -> 0 | AU53: =" - ¡OJO! Los travesaños requieren un mecanizado especial: por la parte trasera deben ser "&IF($C$13=#REF!,2,13)&"mm más cortos." ->  | AV53: =" - ATTENZIONE! I traversi richiedono una lavorazione speziale: la parte posteriore debe essere "&IF($C$13=#REF!,2,13)&"mm piú corta." ->  | AW53: =" - ATTENTION! Des traverses requierent d'un usinage special: la part arrière doit être "&IF($C$13=#REF!,2,13)&"mm plus court." ->  | AX53: =" - WATCH OUT! Crosspieces need an special machining: they must be "&IF($C$13=#REF!,2,13)&"mm shorter in the back." ->  | AY53: =" - ¡ATENÇAO! Os perfis japonesa requer usinagem especial: no lado traseiro deve ser "&IF($C$13=#REF!,2,13)&"mm mais curto." ->  | BB53: =" - PAŽNJA ! Poprečni delovi zahtevaju dodatnu mašinsku obradu: oni moraju biti "&IF($C$13=#REF!,2,13)&"mm kraći sa zadnje strane." -> 
Y54: PER SUP/INF+PUER CR-MAD | Z54: =AA54&COUNTIF($AA$48:$AA$61,AA54)-COUNTIF(AA54:$AA67,AA54)+1 -> S1 | AA54: =IF($C$12=$Y$14,"S","N") -> S | AB54: =+$AT$52 -> - Augšējais/apakšējais profils ir nepieciešams ja augšējais/apakšējais panelis ir no stikla
Y55: CUÑAS P/CRISTAL (10/16mm) | AB55: =AT48 -> - Neaizmirstat ***
Y56: GUARN P/MAD+CRISTAL AGL10/16 | Z56: =AA56&COUNTIF($AA$48:$AA$61,AA56)-COUNTIF(AA56:$AA68,AA56)+1 -> N5 | AA56: =IF(AND(OR($C$12=$Y$12,$C$12=$Y$14),OR(VLOOKUP($C$13,$AB$5:$AC$20,2,0)=10,VLOOKUP($C$13,$AB$5:$AC$20,2,0)=16)),"S","N") -> N | AB56: =$AT$46 -> - Neaizmirstat blīvējumu stiklam 16-E4001621.
Y57: GUARN P/MAD+CRISTAL AGL18 | Z57: =AA57&COUNTIF($AA$48:$AA$61,AA57)-COUNTIF(AA57:$AA69,AA57)+1 -> S2 | AA57: =IF(AND(OR($C$12=$Y$12,$C$12=$Y$14),VLOOKUP($C$13,$AB$5:$AC$20,2,0)=18),"S","N") -> S | AB57: =+$AT$49 -> - Neaizmirstat blīvējumu stiklam 16-E7917121.
Y58: MECANIZ ESP TRAV. SLIGHT/STYLE | Z58: =AA58&COUNTIF($AA$48:$AA$61,AA58)-COUNTIF(AA58:$AA70,AA58)+1 ->  | AA58: =IF(AND(OR($C$13=#REF!,$C$13=#REF!),$C$14>0),"S","N") ->  | AB58: =$AT$53 -> 0
